bitfinex/quotes_ETHUSD_20220226
["timestamp","ask_amount","ask_price","bid_price","bid_amount"]
[1645872833416,20.954,2774.9,2774.5,7.2976542]
[1645872833617,11.96194,2774.7,2774.5,7.2976542]
[1645872833820,0.434,2774.6,2774.5,9.54e-05]
[1645872834260,0.60843008,2774.6,2774.5,9.54e-05]
[1645872836062,0.79683858,2774.6,2774.5,9.54e-05]
[1645872836468,20.05343858,2774.6,2774.5,9.54e-05]
[1645872836665,20.05343858,2774.6,2774.0,19.95]
[1645872836666,13.22,2774.4,2774.0,19.95]
[1645872836867,11.06,2774.2,2774.0,19.95]
[1645872837065,12.3962,2774.1,2774.0,19.95]
[1645872837266,5.5,2774.0,2773.6,0.00439414]
[1645872837469,0.434,2773.9,2773.6,0.00439414]
[1645872837668,0.434,2773.9,2773.0,21.62618756]
[1645872837907,0.434,2773.9,2773.1,1.52420061]
[1645872838209,1.25122681,2773.8,2773.6,0.00439348]
[1645872838412,0.434,2773.7,2773.6,0.00439348]
[1645872838808,0.434,2773.7,2773.0,21.62618756]
[1645872839013,0.434,2773.7,2773.1,1.52420927]
[1645872839215,0.434,2773.7,2773.5,0.00439343]
[1645872840013,0.434,2773.7,2773.0,21.62618756]
[1645872840412,0.434,2773.7,2773.5,0.00439346]
[1645872841217,0.90843008,2773.7,2773.0,21.62618756]
[1645872841416,1.10345421,2773.7,2773.0,21.62618756]
[1645872841663,1.10345421,2773.7,2773.5,0.00439346]
[1645872841861,0.90216,2773.6,2773.5,0.00439346]
[1645872842062,1.33616,2773.6,2773.5,0.00439346]
[1645872842462,1.33616,2773.6,2773.0,21.62618756]
[1645872842661,1.33616,2773.6,2773.4,0.00439352]
[1645872843264,12.39616,2773.6,2773.4,0.00439352]
[1645872843663,14.55616,2773.6,2773.0,21.62618756]
[1645872843865,0.9024135,2773.4,2773.0,21.62618756]
[1645872844065,1.33643,2773.3,2773.0,21.62618756]
[1645872844265,1.81086008,2773.3,2773.0,21.62618756]
[1645872844466,0.17443008,2773.2,2773.0,21.62618756]
[1645872844665,0.434,2773.1,2773.0,21.62618756]
[1645872844866,1.67989898,2773.1,2773.0,21.62618756]
[1645872845066,13.21432906,2773.1,2773.0,21.62618756]
[1645872845266,13.42616482,2773.1,2773.0,21.6305814]
[1645872845523,3.36616482,2773.1,2773.0,21.6305814]
[1645872845723,13.42616482,2773.1,2773.0,7.15282404]
[1645872845923,14.42616482,2773.1,2773.0,7.15282404]
[1645872846126,14.47162482,2773.1,2773.0,1.7328902]
[1645872846524,13.22,2772.9,2772.1,0.25]
[1645872846724,13.22,2772.9,2771.4,0.2578164]
[1645872846725,0.9026783,2772.5,2771.4,0.2578164]
[1645872846926,0.9026783,2772.5,2771.5,1.52486255]
[1645872846927,0.434,2772.4,2771.5,1.52486255]
[1645872847125,1.4266858,2771.9,2771.4,0.0078164]
[1645872847326,1.4266858,2771.9,2771.3,0.00329725]
[1645872847527,1.4266858,2771.9,2771.1,1.52819883]
[1645872847926,0.90272,2771.8,2771.1,3.96865552]
[1645872848130,1.33672,2771.8,2771.1,2.44375394]
[1645872848328,1.33672,2771.8,2771.1,2.39375394]
[1645872849180,1.33672,2771.8,2771.0,7.45]
[1645872849573,1.33672,2771.8,2771.0,7.8104]
[1645872849775,0.434,2771.8,2771.1,1.88537862]
[1645872849975,0.90262,2772.1,2771.3,0.3604]
[1645872849976,1.09770978,2772.1,2771.3,0.3604]
[1645872850175,0.65265166,2772.2,2771.3,0.3604]
[1645872850376,0.434,2772.2,2771.4,1.88520915]
[1645872850675,0.17443717,2772.8,2771.6,0.3604]
[1645872850676,0.18774201,2772.8,2771.6,0.3604]
[1645872850879,0.3,2773.0,2771.6,0.3104]
[1645872851280,0.3,2773.0,2771.7,0.0047172]
[1645872851879,1.20234,2773.0,2771.7,0.0047172]
[1645872852078,1.20234,2773.0,2771.9,0.3104]
[1645872852478,1.20234,2773.0,2772.2,0.00471681]
[1645872852479,1.24823,2773.0,2772.2,0.00471681]
[1645872853313,1.24823,2773.0,2771.8,0.90229]
[1645872853314,1.24823,2773.0,2772.1,0.3104]
[1645872853613,1.24823,2773.0,2772.5,0.00471664]
[1645872853820,0.434,2772.9,2772.5,0.00471664]
[1645872854621,1.41583678,2773.0,2771.8,1.56526493]
[1645872854825,1.20234,2773.0,2772.6,0.00471657]
[1645872855225,0.3,2773.0,2772.6,0.00471657]
[1645872855424,0.22536192,2773.4,2772.6,0.00471657]
[1645872855722,5.32981,2773.5,2772.1,0.00328444]
[1645872855926,0.3,2773.0,2772.6,0.3104]
[1645872856123,0.90221,2773.4,2772.7,0.0047165]
[1645872856523,0.17443717,2773.3,2772.7,0.0047165]
[1645872856767,2.96317153,2773.5,2772.7,0.0047165]
[1645872856768,0.15866153,2773.5,2772.7,0.0047165]
[1645872856970,3.6,2773.4,2772.2,3.50328444]
[1645872857172,3.6,2773.4,2772.8,0.00471645]
[1645872857366,3.77443717,2773.4,2772.8,0.00471645]
[1645872857977,3.6,2773.4,2772.8,0.00471645]
[1645872858178,3.6,2773.4,2772.8,0.3604]
[1645872858474,3.6,2773.4,2773.3,1.15414488]
[1645872858672,3.6,2773.4,2772.8,0.3604]
[1645872858673,3.6,2773.4,2773.1,0.3604]
[1645872859874,3.6,2773.4,2773.3,0.3604]
[1645872860075,1.97441408,2773.4,2773.3,0.3604]
[1645872861411,1.97441408,2773.4,2773.2,2.29367479]
[1645872861609,1.97441408,2773.4,2773.2,1.39184479]
[1645872862417,1.97441408,2773.4,2773.2,1.75224479]
[1645872862615,1.97441408,2773.4,2773.2,7.05584479]
[1645872862815,1.97441408,2773.4,2773.3,0.3604]
[1645872863617,1.97441408,2773.4,2773.3,11.4204]
[1645872863922,1.97441408,2773.4,2773.3,0.3604]
[1645872865765,1.97360828,2773.4,2773.3,0.3604]
[1645872865965,1.97360828,2773.4,2773.3,3.8604]
[1645872866166,0.06438621,2774.4,2773.3,3.8604]
[1645872866368,1.80831323,2774.9,2773.7,0.3604]
[1645872866369,0.00471323,2774.9,2773.7,0.3604]
[1645872866575,0.39163223,2775.6,2774.1,0.3604]
[1645872866867,11.52385762,2776.2,2775.0,1.71278871]
[1645872866868,0.75344092,2776.1,2775.0,1.71278871]
[1645872867067,11.52385762,2776.2,2775.0,1.71278871]
[1645872867068,7.45395762,2776.2,2775.0,1.35238871]
[1645872867469,8.35527762,2776.2,2775.0,1.35238871]
[1645872867669,8.35527762,2776.2,2774.7,4.9416]
[1645872867670,0.3,2776.0,2774.7,4.9416]
[1645872867918,0.7944,2775.9,2774.7,4.9416]
[1645872868118,0.3604,2775.7,2774.5,3.5664]
[1645872868317,0.7944,2775.7,2774.5,3.5664]
[1645872868717,0.7944,2775.7,2774.7,1.08069802]
[1645872868718,0.90159,2775.3,2774.7,1.08069802]
[1645872869521,0.00276805,2775.1,2774.7,1.08069802]
[1645872870021,0.00276805,2775.1,2774.5,0.25]
[1645872870223,0.90168,2775.0,2773.9,3.0989]
[1645872870423,0.434,2774.9,2773.9,3.0989]
[1645872870622,0.60844187,2774.9,2773.9,3.0989]
[1645872870824,0.17444187,2774.8,2774.1,0.00471609]
[1645872871023,0.60844187,2774.8,2774.1,0.00471609]
[1645872871326,0.90181,2774.6,2774.1,1.27678669]
[1645872871527,0.90181,2774.6,2773.8,7.209]
[1645872871767,0.90652487,2774.6,2774.1,0.00471564]
[1645872872764,0.90181,2774.6,2774.0,1.35959235]
[1645872872968,0.00471485,2774.5,2774.1,0.00471554]
[1645872873865,0.90181,2774.6,2773.8,7.209]
[1645872874064,0.00471159,2774.5,2774.1,0.00471228]
[1645872875172,0.90181,2774.6,2773.8,8.38215034]
[1645872875615,0.00471159,2774.5,2774.1,0.00471228]
[1645872876219,0.90181,2774.6,2773.8,8.38215034]
[1645872876618,0.00471159,2774.5,2774.1,0.00471228]
[1645872877419,12.57025187,2774.6,2773.8,7.209]
[1645872877619,0.90198,2774.3,2773.8,7.209]
[1645872877821,0.90198,2774.3,2774.1,0.00453597]
[1645872878022,0.434,2774.2,2774.1,0.00453597]
[1645872878421,1.09828454,2774.2,2774.1,0.00453597]
[1645872878621,1.09828454,2774.2,2773.8,7.209]
[1645872878822,1.2317441,2774.0,2773.8,7.209]
[1645872879022,1.33618,2773.9,2773.8,7.209]
[1645872890166,1.33618,2773.9,2773.8,7.20766034]
[1645872894282,4.93618,2773.9,2773.8,7.20766034]
[1645872899421,4.93618,2773.9,2773.7,0.00471576]
[1645872899422,7.0,2773.7,2772.9,0.25]
[1645872899618,0.26368997,2773.3,2772.1,0.01887413]
[1645872899821,5.0,2772.3,2772.1,0.01887413]
[1645872900023,3.934,2772.2,2772.1,0.01887413]
[1645872900217,12.794,2772.2,2772.1,0.01887413]
[1645872900422,0.65169687,2772.2,2772.1,0.01887413]
[1645872900623,3.934,2772.2,2772.1,0.01887413]
[1645872900823,1.33679,2772.2,2771.5,1.08520795]
[1645872901019,1.14900901,2771.9,2771.5,1.08520795]
[1645872901321,0.434,2771.8,2771.5,1.08520795]
[1645872901783,1.14900901,2771.9,2771.8,1.302]
[1645872904883,2.05170901,2771.9,2771.8,1.302]
[1645872905087,2.48570901,2771.9,2771.8,1.302]
[1645872905281,2.48570901,2771.9,2770.8,4.7555]
[1645872905282,2.5,2771.8,2770.8,4.7555]
[1645872905514,3.5,2771.8,2771.7,0.00471395]
[1645872905714,1.33684213,2771.9,2771.7,0.00471395]
[1645872905914,0.434,2771.8,2771.7,0.00471395]
[1645872906315,0.434,2771.8,2770.6,0.49859997]
[1645872906516,0.434,2771.8,2770.8,0.00327134]
[1645872906817,1.33679,2771.8,2771.6,0.00471402]
[1645872907719,4.93679,2771.8,2771.6,0.00455495]
[1645872908116,3.5,2771.7,2771.6,0.00455495]
[1645872908318,2.23955,2771.7,2771.6,0.00455495]
[1645872908716,2.23955,2771.7,2770.8,0.00327134]
[1645872908916,3.6,2771.8,2770.9,0.3604]
[1645872909176,3.6,2771.8,2771.5,0.00455498]
[1645872909969,3.6,2771.8,2771.4,1.26278]
[1645872910169,3.55,2771.8,2771.5,0.00455498]
[1645872910870,3.55,2771.8,2771.7,1.1237813]
[1645872913717,0.90232,2772.9,2772.2,1.09870596]
[1645872913917,0.15284209,2773.3,2772.2,1.45910596]
[1645872914119,1.19981923,2773.5,2772.2,1.45910596]
[1645872914321,1.19981923,2773.5,2772.7,1.21353852]
[1645872914519,1.19981923,2773.5,2772.7,1.57393852]
[1645872914719,1.19981923,2773.5,2773.3,1.03449218]
[1645872916220,1.19981923,2773.5,2773.3,1.03891582]
[1645872916865,2.10190923,2773.5,2773.3,1.03891582]
[1645872917166,2.10190923,2773.5,2773.3,1.03449218]
[1645872917365,2.10190923,2773.5,2773.3,1.03890982]
[1645872917766,2.08540923,2773.5,2773.3,1.03890982]
[1645872917966,2.07332977,2773.5,2773.3,1.03890982]
[1645872918367,2.07332977,2773.5,2773.3,1.03449218]
[1645872918767,2.07332977,2773.5,2773.3,1.03890982]
[1645872918768,1.17123977,2773.5,2773.3,1.03890982]
[1645872918970,1.17123977,2773.5,2773.4,3.5]
[1645872919168,1.17123977,2773.5,2773.3,1.03890982]
[1645872919573,1.17123977,2773.5,2773.3,1.03449218]
[1645872919781,1.17123977,2773.5,2773.4,3.5]
[1645872920173,1.17123977,2773.5,2773.3,1.03890982]
[1645872920839,4.77123977,2773.5,2773.3,1.03449218]
[1645872921036,4.77123977,2773.5,2773.4,3.5]
[1645872921037,2.37876023,2773.5,2773.4,3.5]
[1645872921834,0.75329025,2773.5,2773.4,3.5]
[1645872922836,0.75329025,2773.5,2773.3,1.03891019]
[1645872923235,0.75329025,2773.5,2773.3,1.03449218]
[1645872923438,0.75329025,2773.5,2773.3,1.03891022]
[1645872924485,0.75329025,2773.5,2773.3,1.03449218]
[1645872924688,0.75329025,2773.5,2773.3,1.39931022]
[1645872924889,0.75329025,2773.5,2773.3,13.36098732]
[1645872925288,0.75329025,2773.5,2773.4,18.6318]
[1645872925491,0.75329025,2773.5,2773.4,7.2114]
[1645872925892,0.749908,2773.5,2773.4,7.2114]
[1645872926288,0.749908,2773.5,2773.4,22.1318]
[1645872926489,8e-06,2773.5,2773.4,22.1318]
[1645872926690,8e-06,2773.5,2773.4,27.1318]
[1645872926890,0.00395762,2775.1,2773.4,28.65551131]
[1645872927090,0.36435762,2775.3,2773.7,14.6659742]
[1645872927290,0.00275666,2774.4,2773.9,11.4204]
[1645872927491,0.00275666,2774.4,2773.8,3.5]
[1645872927691,0.00275666,2774.4,2773.8,14.56]
[1645872927914,0.00275666,2774.4,2773.9,7.2101]
[1645872928118,0.00395762,2775.1,2773.9,7.2101]
[1645872928314,0.00470867,2774.4,2773.9,7.2101]
[1645872928724,0.00470867,2774.4,2774.0,3.5]
[1645872928923,0.00470867,2774.4,2774.1,7.2095]
[1645872929422,0.00395762,2774.9,2774.1,7.2095]
[1645872929622,0.0047088,2774.4,2774.1,7.2095]
[1645872930425,3.6047088,2774.4,2774.1,7.2095]
[1645872930623,3.6,2774.4,2774.1,7.2095]
[1645872930822,3.6047088,2774.4,2774.1,7.2095]
[1645872931682,3.6,2774.4,2774.1,7.2095]
[1645872932085,3.6047088,2774.4,2774.1,7.2095]
[1645872932885,3.6,2774.4,2774.1,7.2095]
[1645872933285,3.6047088,2774.4,2774.1,7.2095]
[1645872934086,3.6,2774.4,2774.1,7.2095]
[1645872934286,3.6047088,2774.4,2774.1,7.2095]
[1645872935089,3.6047088,2774.4,2774.1,6.8598]
[1645872935405,3.6,2774.4,2774.1,6.8598]
[1645872935605,3.6047088,2774.4,2774.1,6.8598]
[1645872936610,3.6,2774.4,2774.1,6.8598]
[1645872936808,3.6047088,2774.4,2774.1,6.8598]
[1645872937811,3.6,2774.4,2774.1,6.8598]
[1645872938014,3.6047088,2774.4,2774.1,6.8598]
[1645872938416,4.21315176,2774.4,2774.1,6.8598]
[1645872939013,15.26844296,2774.4,2774.1,6.8598]
[1645872939264,4.21315176,2774.4,2774.1,6.8598]
[1645872939665,16.17496176,2774.4,2774.1,6.8598]
[1645872940065,16.17025296,2774.4,2774.1,6.8598]
[1645872940364,18.33496176,2774.4,2774.1,6.8598]
[1645872941365,18.33025296,2774.4,2774.1,6.8598]
[1645872941669,18.33496176,2774.4,2774.1,6.8598]
[1645872942265,18.7118327,2774.4,2774.1,5.63219404]
[1645872942467,18.7071239,2774.4,2774.1,5.63219404]
[1645872942910,18.7118327,2774.4,2774.1,5.63219404]
[1645872943513,5.4918327,2774.4,2774.1,5.63219404]
[1645872943715,4.93581,2774.4,2774.1,5.63219404]
[1645872944215,1.35766336,2774.2,2774.1,5.63219404]
[1645872944613,2.25961336,2774.2,2774.1,5.63219404]
[1645872947572,2.25961336,2774.2,2774.1,5.7223087]
[1645872949476,2.17804796,2774.2,2774.1,5.7223087]
[1645872952115,2.61204796,2774.2,2774.1,5.7223087]
[1645872952512,2.78649092,2774.2,2774.1,5.6322087]
[1645872954161,13.84649092,2774.2,2774.1,5.6322087]
[1645872954367,2.78649092,2774.2,2774.1,5.6322087]
[1645872954570,13.84649092,2774.2,2774.1,5.6322087]
[1645872954773,14.84649092,2774.2,2774.1,5.6322087]
[1645872955173,15.14649092,2774.2,2774.1,0.2184887]
[1645872955471,15.35410779,2774.2,2774.1,0.2184887]
[1645872955670,11.06,2774.0,2773.6,0.00471011]
[1645872955871,15.1031006,2773.9,2773.6,0.00471011]
[1645872956070,1.51072296,2773.9,2773.6,0.00471011]
[1645872957771,1.51072296,2773.9,2773.6,0.00470971]
[1645872958714,1.51072296,2773.9,2773.6,0.00408088]
[1645872959720,12.57072296,2773.9,2773.6,0.00408088]
[1645872962290,12.57072296,2773.9,2773.6,0.00828508]
[1645872962492,12.57072296,2773.9,2773.6,0.0042042]
[1645872962689,0.17444296,2773.8,2773.6,0.0042042]
[1645872962892,0.434,2773.7,2773.6,0.0042042]
[1645872963489,0.434,2773.7,2773.6,0.00840836]
[1645872963689,0.434,2773.7,2773.6,0.00420416]
[1645872964898,0.434,2773.7,2773.5,0.00420419]
[1645872965296,0.90215,2773.6,2773.5,0.00420419]
[1645872966024,0.90215,2773.6,2773.5,0.0041067]
[1645872966421,0.90201,2773.9,2773.5,0.0041067]
[1645872967625,0.90201,2773.9,2773.4,0.00410201]
[1645872968025,4.50201,2773.9,2773.4,0.00410201]
[1645872968222,4.50201,2773.9,2773.0,0.3941]
[1645872968424,4.50201,2773.9,2773.0,0.1441]
[1645872969464,4.50201,2773.9,2773.3,0.00411665]
[1645872970268,4.50201,2773.9,2773.0,0.1441]
[1645872970465,4.50201,2773.9,2772.8,0.3604]
[1645872970466,4.50201,2773.9,2773.5,0.00411947]
[1645872970865,0.17444923,2773.8,2773.5,0.00411947]
[1645872971564,0.17444923,2773.8,2772.7,3.37467134]
[1645872971766,0.90215,2773.5,2772.7,3.37467134]
[1645872971967,0.90215,2773.5,2772.7,0.36367134]
[1645872972166,0.17444923,2773.8,2772.7,0.00327134]
[1645872972365,3.77601086,2773.9,2772.7,0.00327134]
[1645872972566,3.6,2773.9,2772.6,0.04349131]
[1645872972929,3.77444923,2773.9,2773.2,0.00194296]
[1645872973113,0.434,2773.8,2773.2,0.00194296]
[1645872973316,1.80431,2773.7,2773.2,0.00194296]
[1645872973516,0.434,2773.6,2773.2,0.00194296]
[1645872974019,0.434,2773.6,2772.6,0.04349131]
[1645872974219,3.934,2773.6,2773.3,0.00194289]
[1645872974420,0.434,2773.6,2773.3,0.00194289]
[1645872975119,0.434,2773.6,2772.6,0.04349131]
[1645872975321,0.434,2773.6,2773.3,0.00469293]
[1645872975725,0.90218,2773.4,2773.3,0.00469293]
[1645872976320,0.90218,2773.4,2772.9,1.35275678]
[1645872976519,0.90218,2773.4,2773.2,0.00469625]
[1645872976981,0.20537331,2773.5,2773.2,0.00469625]
[1645872977180,2.17420401,2773.7,2773.2,0.00469625]
[1645872977381,0.434,2773.7,2773.3,7.0]
[1645872977582,0.37692223,2774.1,2773.5,5.0]
[1645872977780,0.37692223,2774.1,2773.7,5.0]
[1645872977981,0.00469438,2774.4,2774.0,5.0]
[1645872978184,0.00469438,2774.4,2774.3,0.3604]
[1645872978379,9.438e-05,2774.4,2774.3,11.2135]
[1645872978780,0.01877445,2774.8,2774.5,11.4212]
[1645872978983,0.00395762,2776.0,2774.7,11.4204]
[1645872979180,0.00395762,2776.0,2774.9,0.3604]
[1645872979985,0.00395762,2776.0,2775.1,0.3604]
[1645872980427,0.00406468,2775.6,2775.1,0.3604]
[1645872981418,0.00406473,2775.5,2775.1,0.3604]
[1645872982416,0.00395762,2776.0,2775.1,0.3604]
[1645872982617,0.00406476,2775.4,2775.1,0.3604]
[1645872982821,0.00406476,2775.4,2774.8,1.97580431]
[1645872983024,0.00406476,2775.4,2774.8,0.02924431]
[1645872983822,0.00395762,2775.7,2774.8,0.02924431]
[1645872984022,0.00430119,2775.2,2774.8,0.02924431]
[1645872984867,0.00395762,2775.4,2774.8,0.02924431]
[1645872985066,0.00430125,2775.1,2774.8,0.02924431]
[1645872986067,0.00395762,2775.4,2774.8,0.02924431]
[1645872986267,1.33556,2775.5,2774.8,0.02924431]
[1645872986268,0.00430129,2775.1,2774.8,0.02924431]
[1645872987070,0.00430129,2775.1,2774.9,1.39036261]
[1645872987269,0.00395762,2775.6,2775.4,1.23452829]
[1645872987568,1.80315,2775.7,2774.8,0.02924431]
[1645872987569,0.00409868,2775.1,2774.8,0.02924431]
[1645872988523,0.90547762,2775.6,2775.1,1.12230062]
[1645872988717,0.5,2775.3,2774.8,0.02924431]
[1645872988918,0.16443379,2775.3,2774.8,0.02924431]
[1645872989117,0.02034988,2775.5,2774.8,0.02924431]
[1645872989322,0.01639226,2775.5,2774.8,0.02924431]
[1645872989723,0.90547762,2775.6,2775.3,1.04641287]
[1645872989925,0.90547762,2775.6,2774.8,0.02924431]
[1645872989926,0.90152,2775.6,2774.8,0.02924431]
[1645872990124,0.90547762,2775.6,2774.8,0.02924431]
[1645872990323,3.6,2775.5,2774.8,0.02924431]
[1645872990924,3.6,2775.5,2775.0,1.06539921]
[1645872991127,0.0041221,2775.3,2775.0,1.06539921]
[1645872993267,4.50153,2775.5,2775.0,1.06539921]
[1645872993466,0.0041221,2775.3,2775.0,1.06539921]
[1645872994572,3.6,2775.5,2775.0,1.06539921]
[1645872994870,0.00411664,2775.3,2775.0,1.06539921]
[1645872995714,4.50153,2775.5,2775.0,1.06539921]
[1645872995916,0.00411664,2775.3,2775.0,1.06539921]
[1645872996915,3.6,2775.5,2775.0,1.06539921]
[1645872997118,0.00411664,2775.3,2775.0,1.06539921]
[1645872998122,3.6,2775.5,2775.0,1.06539921]
[1645872998320,0.00411719,2775.3,2775.0,1.06539921]
[1645872999368,3.6,2775.5,2775.0,1.06539921]
[1645872999569,0.00411719,2775.3,2775.0,1.06539921]
[1645873000168,0.00411719,2775.3,2775.0,1.06420667]
[1645873001269,0.00411719,2775.3,2775.0,1.42460667]
[1645873001670,3.6,2775.5,2775.0,1.42460667]
[1645873001870,0.00411713,2775.3,2775.0,1.42460667]
[1645873002925,3.6,2775.5,2775.0,1.42460667]
[1645873003125,0.00411713,2775.3,2775.0,1.42460667]
[1645873004231,3.6,2775.5,2775.3,0.00093668]
[1645873005533,3.60411698,2775.5,2775.3,0.00093668]
[1645873007663,3.6,2775.5,2775.3,0.00093668]
[1645873007865,3.60411698,2775.5,2775.3,0.00093668]
[1645873008864,3.6,2775.5,2775.3,0.00093668]
[1645873009269,3.60411696,2775.5,2775.3,0.00093668]
[1645873010071,3.6,2775.5,2775.3,0.00093668]
[1645873010272,3.60411696,2775.5,2775.3,0.00093668]
[1645873011320,3.6,2775.5,2775.3,0.00093668]
[1645873011519,3.60411696,2775.5,2775.3,0.00093668]
[1645873012520,3.6,2775.5,2775.3,0.00093668]
[1645873012724,3.60411696,2775.5,2775.3,0.00093668]
[1645873013823,3.6,2775.5,2775.3,0.00093668]
[1645873014022,3.60411696,2775.5,2775.3,0.00093668]
[1645873014876,3.6,2775.5,2775.3,0.00093668]
[1645873015274,3.60411696,2775.5,2775.3,0.00093668]
[1645873016076,3.6,2775.5,2775.3,0.00093668]
[1645873016276,3.60411696,2775.5,2775.3,0.00093668]
[1645873017179,3.6,2775.5,2775.3,0.00093668]
[1645873017577,3.60411696,2775.5,2775.3,0.00093668]
[1645873018426,3.6,2775.5,2775.2,0.85217668]
[1645873018930,3.60411696,2775.5,2775.2,0.85217668]
[1645873019732,3.6,2775.5,2775.3,3.5]
[1645873019928,3.6,2775.5,2775.2,0.85217668]
[1645873019929,3.60413837,2775.5,2775.2,0.85217668]
[1645873020731,3.60413837,2775.5,2775.0,1.06420667]
[1645873020931,3.6,2775.5,2775.0,1.06420667]
[1645873021131,3.60413837,2775.5,2775.0,1.06420667]
[1645873022170,3.6,2775.5,2775.0,1.06420667]
[1645873022373,0.00413843,2775.4,2775.0,1.06420667]
[1645873022772,0.00316228,2775.4,2775.0,1.06420667]
[1645873023376,3.6,2775.5,2775.0,1.06420667]
[1645873027126,0.00471176,2775.4,2775.0,1.06420667]
[1645873027730,0.00471176,2775.4,2774.9,2.8477754]
[1645873027928,0.00471176,2775.4,2774.6,20.3131914]
[1645873027929,0.00471176,2775.4,2774.6,15.266]
[1645873028130,0.00471176,2775.4,2774.6,7.2082]
[1645873028131,0.43795762,2775.4,2774.6,7.2082]
[1645873028333,11.23085105,2775.3,2774.6,7.2082]
[1645873028529,11.494,2775.2,2774.6,7.2082]
[1645873028732,11.96485105,2775.2,2774.6,7.2082]
[1645873028930,0.90172,2775.1,2774.6,7.2082]
[1645873029202,0.434,2775.0,2774.6,7.2082]
[1645873029397,0.60485105,2775.0,2774.6,7.2082]
[1645873029603,0.60956306,2775.0,2774.6,7.2082]
[1645873030298,0.60956306,2775.0,2774.7,1.43840557]
[1645873030500,0.60485105,2775.0,2774.6,7.2082]
[1645873030897,0.60956301,2775.0,2774.6,7.2082]
[1645873031797,0.60485105,2775.0,2774.6,7.2082]
[1645873031998,0.60942165,2775.0,2774.6,7.2082]
[1645873033022,0.60485105,2775.0,2774.6,7.2082]
[1645873033222,0.60942165,2775.0,2774.6,7.2082]
[1645873034228,0.60485105,2775.0,2774.6,7.2082]
[1645873034428,0.60942165,2775.0,2774.6,7.2082]
[1645873035431,0.60485105,2775.0,2774.6,7.2082]
[1645873035728,0.60926855,2775.0,2774.6,7.2082]
[1645873036530,0.60485105,2775.0,2774.6,7.2082]
[1645873036766,0.60926855,2775.0,2774.6,7.2082]
[1645873037367,1.80359,2774.9,2774.6,7.2082]
[1645873037975,0.17085105,2774.8,2774.6,7.2082]
[1645873038271,0.60485105,2774.8,2774.6,7.2082]
[1645873039874,0.90178,2774.7,2774.6,7.2082]
[1645873040919,1.50663105,2774.7,2774.6,7.2082]
[1645873044880,1.80663105,2774.7,2774.6,7.2082]
[1645873045080,1.9744819,2774.7,2774.6,7.2082]
[1645873045480,1.9744819,2774.7,2774.6,7.2068041]
[1645873046382,3.39193523,2774.7,2774.6,7.2068041]
[1645873046785,4.39193523,2774.7,2774.6,7.2068041]
[1645873047083,3.39193523,2774.7,2774.6,7.2068041]
[1645873047284,4.39193523,2774.7,2774.6,7.2068041]
[1645873047482,14.45193523,2774.7,2774.6,7.2068041]
[1645873047683,15.98027213,2774.7,2774.6,7.2068041]
[1645873047923,14.5628188,2774.7,2774.6,7.2068041]
[1645873049120,18.1628188,2774.7,2774.6,7.2068041]
[1645873051127,18.53953254,2774.7,2774.6,7.2068041]
[1645873053172,7.47953254,2774.7,2774.6,7.2068041]
[1645873054374,18.53953254,2774.7,2774.6,7.2068041]
[1645873055531,18.53953254,2774.7,2774.6,7.2038041]
[1645873056629,7.47953254,2774.7,2774.6,7.2038041]
[1645873056830,7.47953254,2774.7,2774.1,0.25]
[1645873056831,11.06,2774.5,2774.1,0.25]
[1645873057033,11.06,2774.5,2774.0,20.0]
[1645873057034,12.39617,2774.4,2774.0,20.0]
[1645873057232,11.06,2774.2,2774.0,20.0]
[1645873057431,11.494,2774.1,2774.0,19.35881897]
[1645873057938,12.96485105,2774.1,2774.0,19.35881897]
[1645873058135,12.96485105,2774.1,2774.0,19.35410249]
[1645873058136,13.12449956,2774.1,2774.0,19.35410249]
[1645873058537,15.10588855,2774.1,2774.0,19.35410249]
[1645873060172,18.70588855,2774.1,2774.0,19.35410249]
[1645873061175,17.62661956,2774.1,2774.0,19.35410249]
[1645873066527,18.00340886,2774.1,2774.0,19.35410249]
[1645873067177,18.00340886,2774.1,2774.0,5.8587107]
[1645873067378,18.00340886,2774.1,2774.0,0.4451207]
[1645873067379,25.84905622,2774.1,2774.0,0.4451207]
[1645873067580,28.75348109,2774.1,2774.0,0.4451207]
[1645873067785,18.06,2774.0,2773.9,0.00462809]
[1645873067984,18.06,2774.0,2773.1,0.2532499]
[1645873067985,11.06,2773.7,2773.1,0.2532499]
[1645873068182,12.35186642,2773.5,2773.0,20.0]
[1645873068381,0.434,2773.4,2773.0,20.0]
[1645873068584,0.434,2773.4,2773.0,19.88857]
[1645873068784,11.06,2773.3,2773.0,19.88857]
[1645873068985,0.434,2773.2,2773.0,19.88857]
[1645873069187,1.50722105,2773.2,2773.0,19.88857]
[1645873069386,15.91414783,2773.2,2773.1,0.00440782]
[1645873069589,11.06,2773.1,2773.0,18.81024802]
[1645873069788,11.96485105,2773.1,2773.0,13.39468802]
[1645873069988,13.13846414,2773.1,2773.0,13.39468802]
[1645873070432,13.13846414,2773.1,2773.0,7.97892802]
[1645873070829,4.78612414,2773.1,2773.0,7.97892802]
[1645873071629,1.77846414,2773.1,2773.0,7.97892802]
[1645873071834,0.60485105,2773.1,2773.0,7.97892802]
[1645873072931,3.72160284,2773.1,2773.0,7.97892802]
[1645873076494,3.72160284,2773.1,2773.0,7.67893105]
[1645873078131,14.73160284,2773.1,2773.0,7.67893105]
[1645873078832,14.9007346,2773.1,2773.0,7.67893105]
[1645873079033,3.8407346,2773.1,2773.0,7.67893105]
[1645873081781,5.1407346,2773.1,2773.0,7.67893105]
[1645873081984,5.35580748,2773.1,2773.0,7.67893105]
[1645873083586,16.41580748,2773.1,2773.0,7.67893105]
[1645873085629,22.2560039,2773.1,2773.0,7.67893105]
[1645873085830,22.2560039,2773.1,2773.0,2.26334105]
[1645873086327,17.86518,2773.0,2772.9,0.00471682]
[1645873086528,18.29918,2773.0,2772.9,0.00471682]
[1645873086726,22.31395912,2773.0,2772.9,0.00471682]
[1645873086927,0.90263,2772.6,2772.5,0.01887022]
[1645873087129,12.39663,2772.6,2772.3,0.0032499]
[1645873087326,12.39663,2772.6,2772.1,0.1441]
[1645873087327,12.86576176,2772.6,2772.4,0.01887039]
[1645873087527,11.06,2772.5,2772.4,0.01887039]
[1645873087728,11.494,2772.5,2772.4,0.01887039]
[1645873087927,11.66313176,2772.5,2772.4,0.01887039]